[Event "Titled Tuesday Blitz August 17 2021"]
[White "Kadam, Om Manish"]
[Black "Ivic, Velimir"]
[WhiteFideId "45076294"]
[BlackFideId "950122"]
[WhiteElo "1729"]
[BlackElo "2509"]
[Result "0-1"]
[Round "07"]
[TimeControl "180+1"]
[Date "2021.08.17"]
[WhiteClock "0:00:15"]
[BlackClock "0:00:22"]

1. e4 {[%clk 0:03:00]}  c6 {[%clk 0:02:56]} 2. c4 {[%clk 0:03:00]}  d5 {[%clk 0:02:57]} 3. exd5 {[%clk 0:02:59]}  cxd5 {[%clk 0:02:58]} 4. cxd5 {[%clk 0:03:00]}  Nf6 {[%clk 0:02:59]} 5. Nc3 {[%clk 0:03:00]}  Nxd5 {[%clk 0:02:59]} 6. Nf3 {[%clk 0:03:00]}  Nc6 {[%clk 0:02:55]} 7. Bb5 {[%clk 0:02:59]}  e6 {[%clk 0:02:50]} 8. d4 {[%clk 0:03:00]}  Be7 {[%clk 0:02:47]} 9. O-O {[%clk 0:03:00]}  O-O {[%clk 0:02:44]} 10. Re1 {[%clk 0:03:00]}  Bb4 {[%clk 0:02:35]} 11. Bd2 {[%clk 0:02:57]}  Nxc3 {[%clk 0:02:18]} 12. bxc3 {[%clk 0:02:58]}  Bd6 {[%clk 0:02:19]} 13. Bd3 {[%clk 0:02:57]}  h6 {[%clk 0:02:16]} 14. Qe2 {[%clk 0:02:56]}  Bd7 {[%clk 0:02:09]} 15. Qe4 {[%clk 0:02:54]}  f5 {[%clk 0:02:10]} 16. Qe2 {[%clk 0:02:55]}  Qf6 {[%clk 0:02:03]} 17. Rab1 {[%clk 0:02:52]}  b6 {[%clk 0:02:01]} 18. Bc4 {[%clk 0:02:51]}  Rae8 {[%clk 0:02:00]} 19. Bb5 {[%clk 0:02:39]}  Kh8 {[%clk 0:01:52]} 20. Ne5 {[%clk 0:02:12]}  Bxe5 {[%clk 0:01:43]} 21. dxe5 {[%clk 0:02:13]}  Qg6 {[%clk 0:01:41]} 22. Bf4 {[%clk 0:02:09]}  Nb8 {[%clk 0:01:35]} 23. Bc4 {[%clk 0:01:59]}  Bc6 {[%clk 0:01:35]} 24. f3 {[%clk 0:01:59]}  Rc8 {[%clk 0:01:30]} 25. Red1 {[%clk 0:01:58]}  Bxf3 {[%clk 0:01:26]} 26. Qxf3 {[%clk 0:01:51]}  Rxc4 {[%clk 0:01:27]} 27. Rd4 {[%clk 0:01:46]}  Rfc8 {[%clk 0:01:18]} 28. Rxc4 {[%clk 0:01:30]}  Rxc4 {[%clk 0:01:19]} 29. Qa8 {[%clk 0:01:28]}  Qe8 {[%clk 0:01:12]} 30. Be3 {[%clk 0:01:26]}  Rxc3 {[%clk 0:01:11]} 31. Bd4 {[%clk 0:01:21]}  Rc8 {[%clk 0:01:05]} 32. Bf2 {[%clk 0:01:16]}  Nc6 {[%clk 0:01:04]} 33. Qb7 {[%clk 0:01:16]}  Nxe5 {[%clk 0:00:44]} 34. Qxa7 {[%clk 0:01:15]}  Ng4 {[%clk 0:00:45]} 35. Qxb6 {[%clk 0:01:12]}  Rc2 {[%clk 0:00:45]} 36. Bd4 {[%clk 0:00:56]}  e5 {[%clk 0:00:33]} 37. Ba1 {[%clk 0:00:39]}  Qa8 {[%clk 0:00:31]} 38. Qb8+ {[%clk 0:00:34]}  Qxb8 {[%clk 0:00:32]} 39. Rxb8+ {[%clk 0:00:35]}  Kh7 {[%clk 0:00:32]} 40. Bb2 {[%clk 0:00:33]}  f4 {[%clk 0:00:20]} 41. h3 {[%clk 0:00:31]}  Ne3 {[%clk 0:00:21]} 42. Bxe5 {[%clk 0:00:30]}  Rxg2+ {[%clk 0:00:22]} 43. Kh1 {[%clk 0:00:30]}  f3 {[%clk 0:00:22]} 44. Rf8 {[%clk 0:00:21]}  f2 {[%clk 0:00:21]} 45. Bd4 {[%clk 0:00:15]}  Rg1+ {[%clk 0:00:21]} 46. Kh2 {[%clk 0:00:15]}  Nf1# {[%clk 0:00:22]} 0-1


[Site "https://www.chess.com"]

[Event "Titled Tuesday Blitz August 17 2021"]
[White "Khodzhamkuliev, Bahadur"]
[Black "Pert, Richard G"]
[WhiteFideId "24135046"]
[BlackFideId "404748"]
[WhiteElo "2130"]
[BlackElo "2441"]
[Result "1/2-1/2"]
[Round "07"]
[TimeControl "180+1"]
[Date "2021.08.17"]
[WhiteClock "0:02:49"]
[BlackClock "0:02:37"]

1. Nf3 {[%clk 0:03:00]}  Nf6 {[%clk 0:02:58]} 2. d4 {[%clk 0:02:57]}  g6 {[%clk 0:02:58]} 3. Bg5 {[%clk 0:02:56]}  Bg7 {[%clk 0:02:58]} 4. c3 {[%clk 0:02:55]}  O-O {[%clk 0:02:57]} 5. Nbd2 {[%clk 0:02:55]}  d6 {[%clk 0:02:46]} 6. e4 {[%clk 0:02:51]}  c5 {[%clk 0:02:45]} 7. dxc5 {[%clk 0:02:52]}  dxc5 {[%clk 0:02:45]} 8. Bc4 {[%clk 0:02:52]}  Nc6 {[%clk 0:02:42]} 9. Qe2 {[%clk 0:02:50]}  h6 {[%clk 0:02:38]} 10. Bxf6 {[%clk 0:02:49]}  Bxf6 {[%clk 0:02:37]} 11. Qe3 {[%clk 0:02:49]} 1/2-1/2


[Site "https://www.chess.com"]

[Event "Titled Tuesday Blitz August 17 2021"]
[White "Klabis, Rokas"]
[Black "Turayev, Shahruh"]
[WhiteFideId "12805246"]
[BlackFideId "14003856"]
[WhiteElo "2275"]
[BlackElo "2592"]
[Result "1-0"]
[Round "07"]
[TimeControl "180+1"]
[Date "2021.08.18"]
[WhiteClock "0:01:05"]
[BlackClock "0:00:05"]

1. e4 {[%clk 0:03:00]}  d5 {[%clk 0:02:59]} 2. exd5 {[%clk 0:03:00]}  Qxd5 {[%clk 0:03:00]} 3. Nc3 {[%clk 0:03:01]}  Qa5 {[%clk 0:02:58]} 4. Bc4 {[%clk 0:03:01]}  Nf6 {[%clk 0:02:56]} 5. Nge2 {[%clk 0:03:00]}  Nc6 {[%clk 0:02:56]} 6. d3 {[%clk 0:03:00]}  Bg4 {[%clk 0:02:56]} 7. f3 {[%clk 0:03:00]}  Bh5 {[%clk 0:02:56]} 8. Be3 {[%clk 0:03:01]}  O-O-O {[%clk 0:02:55]} 9. Bb3 {[%clk 0:02:54]}  e5 {[%clk 0:02:49]} 10. Qd2 {[%clk 0:02:54]}  Nd4 {[%clk 0:02:47]} 11. Bxd4 {[%clk 0:02:51]}  exd4 {[%clk 0:02:48]} 12. Ne4 {[%clk 0:02:51]}  Bb4 {[%clk 0:02:46]} 13. c3 {[%clk 0:02:52]}  Nxe4 {[%clk 0:02:33]} 14. fxe4 {[%clk 0:02:51]}  dxc3 {[%clk 0:02:16]} 15. bxc3 {[%clk 0:02:50]}  Bd6 {[%clk 0:01:58]} 16. Nd4 {[%clk 0:02:45]}  Be5 {[%clk 0:01:51]} 17. Rc1 {[%clk 0:02:25]}  Bxd4 {[%clk 0:01:42]} 18. cxd4 {[%clk 0:02:25]}  Qxd2+ {[%clk 0:01:40]} 19. Kxd2 {[%clk 0:02:26]}  Rxd4 {[%clk 0:01:40]} 20. Ke3 {[%clk 0:02:24]}  Rhd8 {[%clk 0:01:29]} 21. Rc3 {[%clk 0:02:23]}  f6 {[%clk 0:01:22]} 22. h3 {[%clk 0:02:12]}  Be8 {[%clk 0:01:16]} 23. Rb1 {[%clk 0:02:06]}  c6 {[%clk 0:01:12]} 24. Be6+ {[%clk 0:02:00]}  Kc7 {[%clk 0:01:11]} 25. Rcb3 {[%clk 0:02:01]}  b6 {[%clk 0:01:11]} 26. Rc3 {[%clk 0:02:00]}  R4d6 {[%clk 0:01:03]} 27. Bg8 {[%clk 0:01:56]}  Bg6 {[%clk 0:00:49]} 28. Bd5 {[%clk 0:01:52]}  R8d7 {[%clk 0:00:45]} 29. Rbc1 {[%clk 0:01:49]}  c5 {[%clk 0:00:44]} 30. a4 {[%clk 0:01:50]}  Bf7 {[%clk 0:00:42]} 31. Bxf7 {[%clk 0:01:48]}  Rxf7 {[%clk 0:00:43]} 32. a5 {[%clk 0:01:49]}  Rfd7 {[%clk 0:00:40]} 33. Ra1 {[%clk 0:01:47]}  Kb7 {[%clk 0:00:38]} 34. Rb3 {[%clk 0:01:46]}  g6 {[%clk 0:00:34]} 35. Rc1 {[%clk 0:01:44]}  Rc7 {[%clk 0:00:30]} 36. Rc4 {[%clk 0:01:42]}  Re6 {[%clk 0:00:28]} 37. g4 {[%clk 0:01:41]}  Kc6 {[%clk 0:00:25]} 38. d4 {[%clk 0:01:39]}  Kd7 {[%clk 0:00:16]} 39. d5 {[%clk 0:01:28]}  Rd6 {[%clk 0:00:14]} 40. g5 {[%clk 0:01:24]}  Ke7 {[%clk 0:00:11]} 41. Rc1 {[%clk 0:01:15]}  fxg5 {[%clk 0:00:11]} 42. Rd3 {[%clk 0:01:10]}  c4 {[%clk 0:00:11]} 43. Rd4 {[%clk 0:01:09]}  b5 {[%clk 0:00:10]} 44. e5 {[%clk 0:01:09]}  a6 {[%clk 0:00:05]} 45. exd6+ {[%clk 0:01:07]}  Kxd6 {[%clk 0:00:05]} 46. Rf1 {[%clk 0:01:08]}  c3 {[%clk 0:00:04]} 47. Rf6+ {[%clk 0:01:08]}  Kc5 {[%clk 0:00:05]} 48. Rc6+ {[%clk 0:01:05]}  Rxc6 {[%clk 0:00:05]} 49. dxc6 {[%clk 0:01:05]} 1-0


[Site "https://www.chess.com"]

[Event "Titled Tuesday Blitz August 17 2021"]
[White "Kononenko, Dmitry"]
[Black "Batsuren, Dambasuren"]
[WhiteFideId "14113538"]
[BlackFideId "4902920"]
[WhiteElo "2276"]
[BlackElo "2371"]
[Result "0-1"]
[Round "07"]
[TimeControl "180+1"]
[Date "2021.08.17"]
[WhiteClock "0:00:12"]
[BlackClock "0:00:10"]

1. d4 {[%clk 0:03:00]}  Nf6 {[%clk 0:02:59]} 2. c4 {[%clk 0:02:59]}  a6 {[%clk 0:03:00]} 3. g3 {[%clk 0:02:58]}  c5 {[%clk 0:03:00]} 4. Nf3 {[%clk 0:02:57]}  cxd4 {[%clk 0:02:59]} 5. Nxd4 {[%clk 0:02:55]}  g6 {[%clk 0:02:59]} 6. Bg2 {[%clk 0:02:55]}  Bg7 {[%clk 0:03:00]} 7. Nc3 {[%clk 0:02:53]}  O-O {[%clk 0:03:01]} 8. Nc2 {[%clk 0:02:39]}  Nc6 {[%clk 0:02:55]} 9. Bf4 {[%clk 0:02:39]}  d6 {[%clk 0:02:55]} 10. Qd2 {[%clk 0:02:39]}  Be6 {[%clk 0:02:50]} 11. Bh6 {[%clk 0:02:34]}  Bxc4 {[%clk 0:02:45]} 12. h4 {[%clk 0:02:34]}  Qa5 {[%clk 0:02:09]} 13. h5 {[%clk 0:02:25]}  Bxh6 {[%clk 0:02:05]} 14. Qxh6 {[%clk 0:02:23]}  g5 {[%clk 0:02:06]} 15. Ne3 {[%clk 0:02:17]}  Be6 {[%clk 0:01:53]} 16. f4 {[%clk 0:01:46]}  gxf4 {[%clk 0:01:44]} 17. gxf4 {[%clk 0:01:34]}  Kh8 {[%clk 0:01:40]} 18. O-O-O {[%clk 0:01:28]}  Rac8 {[%clk 0:01:18]} 19. f5 {[%clk 0:01:16]}  Bxa2 {[%clk 0:01:05]} 20. Rhg1 {[%clk 0:01:14]}  Rg8 {[%clk 0:00:50]} 21. Bxc6 {[%clk 0:00:57]}  bxc6 {[%clk 0:00:51]} 22. Rxg8+ {[%clk 0:00:39]}  Rxg8 {[%clk 0:00:52]} 23. Rxd6 {[%clk 0:00:37]}  Qe5 {[%clk 0:00:34]} 24. Rd3 {[%clk 0:00:30]}  Bb3 {[%clk 0:00:31]} 25. Kd2 {[%clk 0:00:22]}  c5 {[%clk 0:00:27]} 26. Ncd1 {[%clk 0:00:17]}  c4 {[%clk 0:00:24]} 27. Rc3 {[%clk 0:00:16]}  Ne4+ {[%clk 0:00:24]} 28. Ke1 {[%clk 0:00:16]}  Rg1+ {[%clk 0:00:24]} 29. Nf1 {[%clk 0:00:16]}  Nxc3 {[%clk 0:00:18]} 30. Nxc3 {[%clk 0:00:15]}  Qg3+ {[%clk 0:00:13]} 31. Kd2 {[%clk 0:00:15]}  Rxf1 {[%clk 0:00:10]} 32. f6 {[%clk 0:00:15]}  exf6 {[%clk 0:00:07]} 33. Nd5 {[%clk 0:00:12]}  Qe1+ {[%clk 0:00:06]} 34. Ke3 {[%clk 0:00:10]}  Qc1+ {[%clk 0:00:06]} 35. Kd4 {[%clk 0:00:10]}  Qxh6 {[%clk 0:00:07]} 36. Ne3 {[%clk 0:00:09]}  Rf4+ {[%clk 0:00:07]} 37. Kc3 {[%clk 0:00:09]}  Rf3 {[%clk 0:00:07]} 38. exf3 {[%clk 0:00:08]}  Qxe3+ {[%clk 0:00:08]} 39. Kb4 {[%clk 0:00:09]}  Qd2+ {[%clk 0:00:08]} 40. Kc5 {[%clk 0:00:08]}  Qxb2 {[%clk 0:00:08]} 41. h6 {[%clk 0:00:09]}  c3 {[%clk 0:00:09]} 42. f4 {[%clk 0:00:10]}  c2 {[%clk 0:00:10]} 43. Kd6 {[%clk 0:00:10]}  Qd4+ {[%clk 0:00:10]} 44. Ke7 {[%clk 0:00:10]}  c1=Q {[%clk 0:00:11]} 45. f5 {[%clk 0:00:11]}  Qc7+ {[%clk 0:00:10]} 46. Kf8 {[%clk 0:00:12]}  Qdd8# {[%clk 0:00:10]} 0-1


[Site "https://www.chess.com"]

[Event "Titled Tuesday Blitz August 17 2021"]
[White "Krishnakumar, Sriram"]
[Black "Real De Azua, Ernesto"]
[WhiteFideId "30915856"]
[BlackFideId "108154"]
[WhiteElo "2369"]
[BlackElo "2476"]
[Result "1/2-1/2"]
[Round "07"]
[TimeControl "180+1"]
[Date "2021.08.18"]
[WhiteClock "0:00:27"]
[BlackClock "0:00:04"]

1. e4 {[%clk 0:03:00]}  e5 {[%clk 0:03:00]} 2. Nf3 {[%clk 0:03:00]}  Nc6 {[%clk 0:03:00]} 3. d4 {[%clk 0:02:58]}  exd4 {[%clk 0:02:58]} 4. Nxd4 {[%clk 0:02:59]}  Bb4+ {[%clk 0:02:52]} 5. c3 {[%clk 0:02:58]}  Bc5 {[%clk 0:02:44]} 6. Be3 {[%clk 0:02:57]}  Bb6 {[%clk 0:02:44]} 7. Nf5 {[%clk 0:02:56]}  Bxe3 {[%clk 0:02:42]} 8. Nxe3 {[%clk 0:02:57]}  Nge7 {[%clk 0:02:40]} 9. c4 {[%clk 0:02:55]}  d6 {[%clk 0:02:39]} 10. Nc3 {[%clk 0:02:55]}  O-O {[%clk 0:02:36]} 11. Be2 {[%clk 0:02:55]}  Kh8 {[%clk 0:02:35]} 12. O-O {[%clk 0:02:54]}  f5 {[%clk 0:02:35]} 13. f3 {[%clk 0:02:49]}  f4 {[%clk 0:02:30]} 14. Ned5 {[%clk 0:02:50]}  Ne5 {[%clk 0:02:25]} 15. Qd2 {[%clk 0:02:38]}  N7g6 {[%clk 0:02:20]} 16. Rfd1 {[%clk 0:02:20]}  Be6 {[%clk 0:02:09]} 17. Nb5 {[%clk 0:02:02]}  Rf7 {[%clk 0:02:01]} 18. b3 {[%clk 0:01:38]}  c6 {[%clk 0:01:29]} 19. Nbc7 {[%clk 0:01:37]}  Rxc7 {[%clk 0:01:28]} 20. Nxc7 {[%clk 0:01:38]}  Qxc7 {[%clk 0:01:27]} 21. Qxd6 {[%clk 0:01:39]}  Qf7 {[%clk 0:01:25]} 22. Rd2 {[%clk 0:01:24]}  Qf6 {[%clk 0:01:20]} 23. Rad1 {[%clk 0:01:22]}  h6 {[%clk 0:01:20]} 24. Qc7 {[%clk 0:01:20]}  Kh7 {[%clk 0:01:01]} 25. Rd8 {[%clk 0:01:19]}  Rxd8 {[%clk 0:01:01]} 26. Qxd8 {[%clk 0:01:20]}  Qf7 {[%clk 0:00:55]} 27. c5 {[%clk 0:01:18]}  Nd7 {[%clk 0:00:43]} 28. b4 {[%clk 0:01:15]}  Nge5 {[%clk 0:00:42]} 29. a3 {[%clk 0:01:12]}  Bb3 {[%clk 0:00:32]} 30. Rd6 {[%clk 0:01:11]}  Nf6 {[%clk 0:00:22]} 31. Bf1 {[%clk 0:00:47]}  Bc4 {[%clk 0:00:21]} 32. Bxc4 {[%clk 0:00:45]}  Qxc4 {[%clk 0:00:18]} 33. h4 {[%clk 0:00:38]}  Nf7 {[%clk 0:00:09]} 34. Qe7 {[%clk 0:00:33]}  Nxd6 {[%clk 0:00:05]} 35. cxd6 {[%clk 0:00:34]}  Qd4+ {[%clk 0:00:04]} 36. Kh2 {[%clk 0:00:31]}  Qf2 {[%clk 0:00:04]} 37. d7 {[%clk 0:00:25]}  Qxh4+ {[%clk 0:00:02]} 38. Kg1 {[%clk 0:00:25]}  Qe1+ {[%clk 0:00:03]} 39. Kh2 {[%clk 0:00:26]}  Qh4+ {[%clk 0:00:02]} 40. Kg1 {[%clk 0:00:26]}  Qe1+ {[%clk 0:00:03]} 41. Kh2 {[%clk 0:00:27]}  Qh4+ {[%clk 0:00:04]} 1/2-1/2


[Site "https://www.chess.com"]

[Event "Titled Tuesday Blitz August 17 2021"]
[White "Kuzubov, Yuriy"]
[Black "Popilski, Gil"]
[WhiteFideId "14112906"]
[BlackFideId "2809060"]
[WhiteElo "2564"]
[BlackElo "2537"]
[Result "1-0"]
[Round "07"]
[TimeControl "180+1"]
[Date "2021.08.17"]
[WhiteClock "0:00:19"]
[BlackClock "0:00:01"]

1. d4 {[%clk 0:03:00]}  Nf6 {[%clk 0:02:51]} 2. Nf3 {[%clk 0:03:00]}  d6 {[%clk 0:02:49]} 3. Nbd2 {[%clk 0:03:00]}  Nc6 {[%clk 0:02:43]} 4. e4 {[%clk 0:02:58]}  e5 {[%clk 0:02:43]} 5. c3 {[%clk 0:02:56]}  Be7 {[%clk 0:02:37]} 6. Bd3 {[%clk 0:02:50]}  O-O {[%clk 0:02:36]} 7. O-O {[%clk 0:02:50]}  Bg4 {[%clk 0:02:29]} 8. h3 {[%clk 0:02:50]}  Bh5 {[%clk 0:02:29]} 9. d5 {[%clk 0:02:47]}  Nb8 {[%clk 0:02:28]} 10. Re1 {[%clk 0:02:47]}  c6 {[%clk 0:02:27]} 11. c4 {[%clk 0:02:46]}  Nbd7 {[%clk 0:02:24]} 12. Nf1 {[%clk 0:02:46]}  Nc5 {[%clk 0:02:22]} 13. Bc2 {[%clk 0:02:45]}  cxd5 {[%clk 0:02:21]} 14. cxd5 {[%clk 0:02:45]}  Rc8 {[%clk 0:01:41]} 15. Ng3 {[%clk 0:02:43]}  Bg6 {[%clk 0:01:41]} 16. b4 {[%clk 0:02:34]}  Na6 {[%clk 0:01:34]} 17. a3 {[%clk 0:02:14]}  Nxd5 {[%clk 0:01:33]} 18. Qxd5 {[%clk 0:02:11]}  Rxc2 {[%clk 0:01:33]} 19. Qxb7 {[%clk 0:02:10]}  Qb6 {[%clk 0:01:11]} 20. Qxb6 {[%clk 0:02:03]}  axb6 {[%clk 0:01:12]} 21. Be3 {[%clk 0:01:57]}  b5 {[%clk 0:01:09]} 22. a4 {[%clk 0:01:38]}  Nc7 {[%clk 0:00:42]} 23. Rec1 {[%clk 0:01:29]}  Rxc1+ {[%clk 0:00:41]} 24. Rxc1 {[%clk 0:01:29]}  Na6 {[%clk 0:00:25]} 25. axb5 {[%clk 0:01:27]}  Nxb4 {[%clk 0:00:25]} 26. b6 {[%clk 0:01:24]}  Rb8 {[%clk 0:00:24]} 27. Rc7 {[%clk 0:01:04]}  Bd8 {[%clk 0:00:15]} 28. Rd7 {[%clk 0:01:03]}  f6 {[%clk 0:00:12]} 29. Rxd6 {[%clk 0:00:55]}  Be8 {[%clk 0:00:12]} 30. Nf5 {[%clk 0:00:47]}  Nc6 {[%clk 0:00:12]} 31. g4 {[%clk 0:00:37]}  Bxb6 {[%clk 0:00:07]} 32. Bxb6 {[%clk 0:00:37]}  Rxb6 {[%clk 0:00:07]} 33. Kg2 {[%clk 0:00:33]}  Rb7 {[%clk 0:00:06]} 34. g5 {[%clk 0:00:30]}  Kf7 {[%clk 0:00:03]} 35. gxf6 {[%clk 0:00:27]}  gxf6 {[%clk 0:00:04]} 36. Nh2 {[%clk 0:00:23]}  h5 {[%clk 0:00:03]} 37. Ng3 {[%clk 0:00:21]}  Ke7 {[%clk 0:00:02]} 38. Nf5+ {[%clk 0:00:20]}  Kf7 {[%clk 0:00:03]} 39. Nf1 {[%clk 0:00:21]}  Rc7 {[%clk 0:00:02]} 40. N1g3 {[%clk 0:00:20]}  Ne7 {[%clk 0:00:02]} 41. Nxh5 {[%clk 0:00:19]}  Nxf5 {[%clk 0:00:02]} 42. Rxf6+ {[%clk 0:00:19]}  Ke7 {[%clk 0:00:01]} 43. Rxf5 {[%clk 0:00:20]}  Kd6 {[%clk 0:00:01]} 44. Ng3 {[%clk 0:00:19]} 1-0


[Site "https://www.chess.com"]

[Event "Titled Tuesday Blitz August 17 2021"]
[White "Kvon, Andrey"]
[Black "Turner, Max N"]
[WhiteFideId "14201356"]
[BlackFideId "447722"]
[WhiteElo "2458"]
[BlackElo "2078"]
[Result "1-0"]
[Round "07"]
[TimeControl "180+1"]
[Date "2021.08.17"]
[WhiteClock "0:00:53"]
[BlackClock "0:00:03"]

1. e4 {[%clk 0:03:00]}  c5 {[%clk 0:02:47]} 2. b3 {[%clk 0:03:00]}  e5 {[%clk 0:02:46]} 3. Bb2 {[%clk 0:03:00]}  d6 {[%clk 0:02:47]} 4. f4 {[%clk 0:03:00]}  Nc6 {[%clk 0:02:42]} 5. Nf3 {[%clk 0:03:00]}  Bg4 {[%clk 0:02:27]} 6. Bb5 {[%clk 0:02:58]}  Qb6 {[%clk 0:02:07]} 7. Na3 {[%clk 0:02:53]}  a6 {[%clk 0:02:04]} 8. Bxc6+ {[%clk 0:02:51]}  Qxc6 {[%clk 0:02:05]} 9. O-O {[%clk 0:02:51]}  O-O-O {[%clk 0:01:51]} 10. Qe1 {[%clk 0:02:43]}  f6 {[%clk 0:01:31]} 11. Nc4 {[%clk 0:02:30]}  b5 {[%clk 0:01:25]} 12. Na5 {[%clk 0:02:29]}  Qb6 {[%clk 0:01:21]} 13. d4 {[%clk 0:02:19]}  cxd4 {[%clk 0:01:11]} 14. Kh1 {[%clk 0:02:19]}  Ne7 {[%clk 0:01:01]} 15. a4 {[%clk 0:02:08]}  Bd7 {[%clk 0:00:48]} 16. c3 {[%clk 0:01:48]}  dxc3 {[%clk 0:00:43]} 17. Bxc3 {[%clk 0:01:47]}  Kb8 {[%clk 0:00:36]} 18. Qd2 {[%clk 0:01:39]}  Rc8 {[%clk 0:00:35]} 19. Rfc1 {[%clk 0:01:32]}  g6 {[%clk 0:00:14]} 20. axb5 {[%clk 0:01:23]}  Bxb5 {[%clk 0:00:12]} 21. Nc4 {[%clk 0:01:23]}  Bxc4 {[%clk 0:00:04]} 22. bxc4 {[%clk 0:01:24]}  Ka8 {[%clk 0:00:05]} 23. Rcb1 {[%clk 0:01:20]}  Qc6 {[%clk 0:00:05]} 24. c5 {[%clk 0:01:09]}  dxc5 {[%clk 0:00:04]} 25. Bxe5 {[%clk 0:01:09]}  fxe5 {[%clk 0:00:03]} 26. Nxe5 {[%clk 0:01:10]}  Qe6 {[%clk 0:00:02]} 27. Qa5 {[%clk 0:01:02]}  Ka7 {[%clk 0:00:02]} 28. Nd7 {[%clk 0:00:58]}  Bg7 {[%clk 0:00:03]} 29. Rb6 {[%clk 0:00:53]} 1-0


[Site "https://www.chess.com"]

[Event "Titled Tuesday Blitz August 17 2021"]
[White "Loy, Konstantin"]
[Black "Krysa, Leandro"]
[WhiteFideId "14122499"]
[BlackFideId "116807"]
[WhiteElo "2084"]
[BlackElo "2490"]
[Result "0-1"]
[Round "07"]
[TimeControl "180+1"]
[Date "2021.08.17"]
[WhiteClock "0:00:03"]
[BlackClock "0:01:45"]

1. e4 {[%clk 0:02:53]}  d6 {[%clk 0:03:00]} 2. d4 {[%clk 0:02:52]}  Nf6 {[%clk 0:03:00]} 3. Nc3 {[%clk 0:02:52]}  c6 {[%clk 0:03:01]} 4. Nf3 {[%clk 0:02:49]}  Bg4 {[%clk 0:03:01]} 5. Bc4 {[%clk 0:02:46]}  e6 {[%clk 0:02:59]} 6. h3 {[%clk 0:02:32]}  Bxf3 {[%clk 0:02:57]} 7. Qxf3 {[%clk 0:02:32]}  d5 {[%clk 0:02:58]} 8. exd5 {[%clk 0:02:30]}  cxd5 {[%clk 0:02:58]} 9. Bb5+ {[%clk 0:02:27]}  Nc6 {[%clk 0:02:59]} 10. Bg5 {[%clk 0:02:27]}  Be7 {[%clk 0:02:58]} 11. O-O {[%clk 0:02:12]}  O-O {[%clk 0:02:57]} 12. Bxc6 {[%clk 0:02:02]}  bxc6 {[%clk 0:02:57]} 13. Ne2 {[%clk 0:02:02]}  Nd7 {[%clk 0:02:53]} 14. Bxe7 {[%clk 0:02:01]}  Qxe7 {[%clk 0:02:54]} 15. c3 {[%clk 0:02:01]}  Rab8 {[%clk 0:02:53]} 16. b4 {[%clk 0:02:01]}  Nb6 {[%clk 0:02:50]} 17. Rfe1 {[%clk 0:01:58]}  Nc4 {[%clk 0:02:49]} 18. Nf4 {[%clk 0:01:50]}  Qf6 {[%clk 0:02:49]} 19. Qg4 {[%clk 0:01:21]}  a5 {[%clk 0:02:41]} 20. a3 {[%clk 0:01:19]}  Ra8 {[%clk 0:02:41]} 21. Nd3 {[%clk 0:01:12]}  Ra7 {[%clk 0:02:41]} 22. Ne5 {[%clk 0:00:54]}  Nxe5 {[%clk 0:02:37]} 23. dxe5 {[%clk 0:00:52]}  Qe7 {[%clk 0:02:35]} 24. Rad1 {[%clk 0:00:42]}  c5 {[%clk 0:02:28]} 25. Rd3 {[%clk 0:00:33]}  axb4 {[%clk 0:02:25]} 26. axb4 {[%clk 0:00:33]}  cxb4 {[%clk 0:02:20]} 27. Qxb4 {[%clk 0:00:27]}  Rc8 {[%clk 0:02:19]} 28. Qxe7 {[%clk 0:00:26]}  Rxe7 {[%clk 0:02:20]} 29. Ree3 {[%clk 0:00:19]}  Rc4 {[%clk 0:02:18]} 30. Rd4 {[%clk 0:00:18]}  Rec7 {[%clk 0:02:17]} 31. Rxc4 {[%clk 0:00:18]}  Rxc4 {[%clk 0:02:17]} 32. Kf1 {[%clk 0:00:17]}  h5 {[%clk 0:02:17]} 33. Ke2 {[%clk 0:00:17]}  h4 {[%clk 0:02:09]} 34. Kd3 {[%clk 0:00:17]}  g5 {[%clk 0:02:06]} 35. Re1 {[%clk 0:00:18]}  Kg7 {[%clk 0:01:56]} 36. f3 {[%clk 0:00:09]}  Ra4 {[%clk 0:01:54]} 37. Re2 {[%clk 0:00:05]}  Kg6 {[%clk 0:01:54]} 38. Rb2 {[%clk 0:00:03]}  Ra7 {[%clk 0:01:50]} 39. Ke3 {[%clk 0:00:02]}  Kf5 {[%clk 0:01:50]} 40. Kd4 {[%clk 0:00:01]}  Ra4+ {[%clk 0:01:49]} 41. Kc5 {[%clk 0:00:02]}  Kxe5 {[%clk 0:01:47]} 42. Kc6 {[%clk 0:00:02]}  Rc4+ {[%clk 0:01:47]} 43. Kd7 {[%clk 0:00:03]}  Rxc3 {[%clk 0:01:46]} 44. Ke7 {[%clk 0:00:03]}  d4 {[%clk 0:01:46]} 45. Kxf7 {[%clk 0:00:03]}  d3 {[%clk 0:01:46]} 46. Rd2 {[%clk 0:00:03]}  Kd4 {[%clk 0:01:46]} 47. Kg6 {[%clk 0:00:03]}  Rc2 {[%clk 0:01:45]} 0-1


[Site "https://www.chess.com"]

[Event "Titled Tuesday Blitz August 17 2021"]
[White "Makhnev, Denis"]
[Black "Maze, Sebastien"]
[WhiteFideId "13707647"]
[BlackFideId "613762"]
[WhiteElo "2537"]
[BlackElo "2462"]
[Result "1-0"]
[Round "07"]
[TimeControl "180+1"]
[Date "2021.08.17"]
[WhiteClock "0:00:41"]
[BlackClock "0:01:49"]

1. d4 {[%clk 0:03:00]}  Nf6 {[%clk 0:02:58]} 2. c4 {[%clk 0:03:01]}  g6 {[%clk 0:02:59]} 3. Nc3 {[%clk 0:03:01]}  Bg7 {[%clk 0:02:59]} 4. e4 {[%clk 0:03:00]}  d6 {[%clk 0:02:58]} 5. h3 {[%clk 0:03:01]}  O-O {[%clk 0:02:57]} 6. Be3 {[%clk 0:03:01]}  Nc6 {[%clk 0:02:57]} 7. d5 {[%clk 0:03:00]}  Nb4 {[%clk 0:02:55]} 8. Nf3 {[%clk 0:02:54]}  e6 {[%clk 0:02:56]} 9. a3 {[%clk 0:02:48]}  Na6 {[%clk 0:02:55]} 10. Bd3 {[%clk 0:02:48]}  exd5 {[%clk 0:02:56]} 11. exd5 {[%clk 0:02:47]}  Re8 {[%clk 0:02:54]} 12. O-O {[%clk 0:02:47]}  Nc5 {[%clk 0:02:54]} 13. Bc2 {[%clk 0:02:47]}  Nce4 {[%clk 0:02:53]} 14. Bd4 {[%clk 0:02:43]}  Bf5 {[%clk 0:02:42]} 15. Nxe4 {[%clk 0:02:03]}  Nxe4 {[%clk 0:02:26]} 16. Re1 {[%clk 0:01:50]}  Bxd4 {[%clk 0:01:52]} 17. Qxd4 {[%clk 0:00:41]}  Qf6 {[%clk 0:01:50]} 18. Rxe4 {[%clk 0:00:41]}  Qxd4 {[%clk 0:01:49]} 19. Rxe8+ {[%clk 0:00:41]}  Rxe8 {[%clk 0:01:48]} 20. Nxd4 {[%clk 0:00:42]}  Bxc2 {[%clk 0:01:48]} 21. Nxc2 {[%clk 0:00:41]}  Re2 {[%clk 0:01:49]} 22. Rc1 {[%clk 0:00:41]} 1-0


[Site "https://www.chess.com"]